[Event "*** Titled Tuesday Blitz"]
[Site "Chess.com"]
[Date "2021.03.16"]
[Round "8"]
[White "IsaacWiebe"]
[Black "JoliyRoger"]
[Result "1-0"]
[WhiteElo "2276"]
[BlackElo "2412"]
[TimeControl "180+1"]
[EndTime "11:29:54 PDT"]
[Termination "IsaacWiebe won on time"]

1. d4 {[%clk 0:03:00.9]} 1... Nf6 {[%clk 0:02:52.7]} 2. c4 {[%clk 0:03:01]} 2...
e6 {[%clk 0:02:52.9]} 3. Nf3 {[%clk 0:03:00.4]} 3... Bb4+ {[%clk 0:02:53]} 4.
Nbd2 {[%clk 0:03:00.6]} 4... b6 {[%clk 0:02:52.8]} 5. g3 {[%clk 0:03:00.3]} 5...
Bb7 {[%clk 0:02:53.3]} 6. Bg2 {[%clk 0:03:00.3]} 6... O-O {[%clk 0:02:53.7]} 7.
O-O {[%clk 0:03:00.1]} 7... Be7 {[%clk 0:02:48.5]} 8. Qc2 {[%clk 0:02:58.4]}
8... d5 {[%clk 0:02:45.5]} 9. Ne5 {[%clk 0:02:57]} 9... c5 {[%clk 0:02:34.6]}
10. dxc5 {[%clk 0:02:43.5]} 10... Bxc5 {[%clk 0:02:31.5]} 11. Nb3 {[%clk
0:02:43.1]} 11... Bd6 {[%clk 0:02:15]} 12. Nd3 {[%clk 0:02:40.5]} 12... Nbd7
{[%clk 0:02:08]} 13. cxd5 {[%clk 0:02:38.7]} 13... Bxd5 {[%clk 0:01:53.5]} 14.
Bg5 {[%clk 0:02:33.5]} 14... Bxg2 {[%clk 0:01:52.3]} 15. Kxg2 {[%clk 0:02:33.8]}
15... Qb8 {[%clk 0:01:49.7]} 16. Rac1 {[%clk 0:02:28.7]} 16... Ne4 {[%clk
0:01:43.9]} 17. Be3 {[%clk 0:02:28.1]} 17... Rc8 {[%clk 0:01:01.6]} 18. Qxc8+
{[%clk 0:02:24.5]} 18... Qxc8 {[%clk 0:01:02]} 19. Rxc8+ {[%clk 0:02:24.8]}
19... Rxc8 {[%clk 0:01:02.8]} 20. Rc1 {[%clk 0:02:24.9]} 20... Rxc1 {[%clk
0:01:03.4]} 21. Nbxc1 {[%clk 0:02:25]} 21... Ndf6 {[%clk 0:00:55.9]} 22. f3
{[%clk 0:02:24.3]} 22... Nd5 {[%clk 0:00:51.3]} 23. Bg1 {[%clk 0:02:13.8]} 23...
Nd2 {[%clk 0:00:43.7]} 24. e4 {[%clk 0:02:12.7]} 24... Nc7 {[%clk 0:00:39.3]}
25. b3 {[%clk 0:02:10.3]} 25... Nb5 {[%clk 0:00:37.4]} 26. Be3 {[%clk
0:02:06.7]} 26... Nb1 {[%clk 0:00:37.1]} 27. Kf2 {[%clk 0:01:42.8]} 27... Ba3
{[%clk 0:00:34.1]} 28. Bf4 {[%clk 0:01:38.8]} 28... a6 {[%clk 0:00:31.5]} 29.
Be3 {[%clk 0:01:35.5]} 29... N1c3 {[%clk 0:00:20.4]} 30. Bxb6 {[%clk 0:01:33.5]}
30... f6 {[%clk 0:00:17.4]} 31. Be3 {[%clk 0:01:31.7]} 31... Kf7 {[%clk
0:00:17.6]} 32. Bc5 {[%clk 0:01:24.6]} 32... Ke8 {[%clk 0:00:12.4]} 33. Bxa3
{[%clk 0:01:22.6]} 33... Nxa3 {[%clk 0:00:13.1]} 34. Nc5 {[%clk 0:01:20.6]}
34... a5 {[%clk 0:00:05.2]} 35. Nxe6 {[%clk 0:01:20.4]} 35... Kf7 {[%clk
0:00:06.1]} 36. Nd4 {[%clk 0:01:19.1]} 36... g5 {[%clk 0:00:03.4]} 37. Nde2
{[%clk 0:01:12.8]} 37... Ncb5 {[%clk 0:00:03]} 38. Ke3 {[%clk 0:00:54]} 38...
Nc2+ {[%clk 0:00:02.6]} 39. Kd2 {[%clk 0:00:53.2]} 39... Nb4 {[%clk 0:00:03.1]}
40. Nc3 {[%clk 0:00:40.8]} 40... Nd4 {[%clk 0:00:03.3]} 41. Ke3 {[%clk
0:00:35.5]} 41... Ndc2+ {[%clk 0:00:03.6]} 42. Kf2 {[%clk 0:00:36]} 42... Nd4
{[%clk 0:00:04.2]} 43. N1e2 {[%clk 0:00:28.3]} 43... Ndc6 {[%clk 0:00:04.3]} 44.
f4 {[%clk 0:00:17.6]} 44... Nd3+ {[%clk 0:00:04.8]} 45. Kf3 {[%clk 0:00:16.9]}
45... h6 {[%clk 0:00:04.7]} 46. a3 {[%clk 0:00:12.5]} 46... Nc5 {[%clk
0:00:04.6]} 47. Nc1 {[%clk 0:00:11]} 47... Nd4+ {[%clk 0:00:04.8]} 48. Ke3
{[%clk 0:00:09.6]} 48... Nc2+ {[%clk 0:00:05.3]} 49. Kd2 {[%clk 0:00:09.1]}
49... Nxa3 {[%clk 0:00:05.9]} 50. e5 {[%clk 0:00:08]} 50... Ke6 {[%clk
0:00:05.4]} 51. exf6 {[%clk 0:00:07.3]} 51... Kxf6 {[%clk 0:00:05.9]} 52. fxg5+
{[%clk 0:00:08.2]} 52... Kxg5 {[%clk 0:00:05.2]} 53. Ke3 {[%clk 0:00:07.1]}
53... Kg4 {[%clk 0:00:05.1]} 54. Ne4 {[%clk 0:00:06.9]} 54... Ne6 {[%clk
0:00:04]} 55. Nf2+ {[%clk 0:00:07]} 55... Kg5 {[%clk 0:00:03.7]} 56. Kd3 {[%clk
0:00:06.2]} 56... Nb5 {[%clk 0:00:03.7]} 57. Kc4 {[%clk 0:00:06.2]} 57... Nbc7
{[%clk 0:00:04.4]} 58. Ne2 {[%clk 0:00:04.5]} 58... h5 {[%clk 0:00:04.7]} 59.
Nd4 {[%clk 0:00:04.6]} 59... Nd8 {[%clk 0:00:03.6]} 60. Kc5 {[%clk 0:00:03.7]}
60... a4 {[%clk 0:00:02.4]} 61. bxa4 {[%clk 0:00:03.3]} 61... Ne8 {[%clk
0:00:01.6]} 62. a5 {[%clk 0:00:03]} 62... Nb7+ {[%clk 0:00:02.2]} 63. Kb6 {[%clk
0:00:03.1]} 63... Nbd6 {[%clk 0:00:01.9]} 64. a6 {[%clk 0:00:03.6]} 64... Nc4+
{[%clk 0:00:02.6]} 65. Kb7 {[%clk 0:00:02.9]} 65... Ned6+ {[%clk 0:00:03.3]} 66.
Kc6 {[%clk 0:00:03.3]} 66... Ne8 {[%clk 0:00:02.5]} 67. a7 {[%clk 0:00:03.6]}
67... Na5+ {[%clk 0:00:03.3]} 68. Kb5 {[%clk 0:00:03.8]} 68... Nd6+ {[%clk
0:00:03.6]} 69. Kxa5 {[%clk 0:00:03.6]} 69... Nc4+ {[%clk 0:00:03.9]} 70. Ka6
{[%clk 0:00:04.3]} 70... Nd6 {[%clk 0:00:04.1]} 71. a8=Q {[%clk 0:00:03.9]}
71... Nc4 {[%clk 0:00:05]} 72. Ka7 {[%clk 0:00:04.5]} 72... Ne5 {[%clk
0:00:05.5]} 73. Qg8+ {[%clk 0:00:04.6]} 73... Kf6 {[%clk 0:00:05.2]} 74. Qh8+
{[%clk 0:00:05.5]} 74... Ke7 {[%clk 0:00:05]} 75. Qxe5+ {[%clk 0:00:05.6]} 75...
Kf7 {[%clk 0:00:03.4]} 76. Qxh5+ {[%clk 0:00:06.5]} 76... Kg7 {[%clk 0:00:03.5]}
77. Qf3 {[%clk 0:00:07.3]} 77... Kg6 {[%clk 0:00:02.8]} 78. Ne2 {[%clk
0:00:08.2]} 78... Kg5 {[%clk 0:00:03.3]} 79. h3 {[%clk 0:00:09.1]} 79... Kh6
{[%clk 0:00:03.8]} 80. Qg2 {[%clk 0:00:10]} 80... Kg5 {[%clk 0:00:04.5]} 81. Kb6
{[%clk 0:00:09.9]} 81... Kh6 {[%clk 0:00:05.4]} 82. Kc5 {[%clk 0:00:10.8]} 82...
Kg5 {[%clk 0:00:06.3]} 83. Kd4 {[%clk 0:00:11.6]} 83... Kh6 {[%clk 0:00:07.2]}
84. Ke3 {[%clk 0:00:12.4]} 1-0

[Event "*** Titled Tuesday Blitz"]
[Site "Chess.com"]
[Date "2021.03.16"]
[Round "8"]
[White "nss13"]
[Black "Ural_bogatyr"]
[Result "1/2-1/2"]
[WhiteElo "2587"]
[BlackElo "2498"]
[TimeControl "180+1"]
[EndTime "11:29:56 PDT"]
[Termination "Game drawn by repetition"]

1. e4 {[%clk 0:03:00.9]} 1... e5 {[%clk 0:02:59.7]} 2. Nf3 {[%clk 0:03:01]} 2...
Nc6 {[%clk 0:02:59.5]} 3. Bb5 {[%clk 0:03:01.6]} 3... Bc5 {[%clk 0:02:58.8]} 4.
O-O {[%clk 0:03:01.1]} 4... Nf6 {[%clk 0:02:58.4]} 5. Nxe5 {[%clk 0:03:00.1]}
5... Nxe4 {[%clk 0:02:57.6]} 6. Qe2 {[%clk 0:02:56.2]} 6... Nxe5 {[%clk
0:02:56.3]} 7. Qxe4 {[%clk 0:02:55.2]} 7... Qe7 {[%clk 0:02:55.7]} 8. d4 {[%clk
0:02:55]} 8... Nc6 {[%clk 0:02:55.3]} 9. Qxe7+ {[%clk 0:02:48.2]} 9... Bxe7
{[%clk 0:02:56.2]} 10. c3 {[%clk 0:02:46.7]} 10... O-O {[%clk 0:02:47.5]} 11.
Bf4 {[%clk 0:02:46.2]} 11... d6 {[%clk 0:02:47.2]} 12. Re1 {[%clk 0:02:43.4]}
12... Bf6 {[%clk 0:02:46.8]} 13. Nd2 {[%clk 0:02:36.6]} 13... g6 {[%clk
0:02:39.9]} 14. Ne4 {[%clk 0:02:24.6]} 14... Bg7 {[%clk 0:02:39.5]} 15. Bg5
{[%clk 0:02:25.2]} 15... h6 {[%clk 0:02:33.6]} 16. Bxc6 {[%clk 0:02:12.1]} 16...
hxg5 {[%clk 0:02:19.8]} 17. Ba4 {[%clk 0:02:11.6]} 17... g4 {[%clk 0:02:17.3]}
18. Bb3 {[%clk 0:02:04.8]} 18... Bh6 {[%clk 0:01:56.2]} 19. Nf6+ {[%clk
0:01:49.5]} 19... Kh8 {[%clk 0:01:54]} 20. Ne8 {[%clk 0:01:39.2]} 20... Bd7
{[%clk 0:01:32.4]} 21. Nxc7 {[%clk 0:01:38.2]} 21... Rac8 {[%clk 0:01:32]} 22.
Nd5 {[%clk 0:01:36.2]} 22... Kg7 {[%clk 0:01:30.4]} 23. Re7 {[%clk 0:01:13.7]}
23... Bc6 {[%clk 0:01:29.9]} 24. Rae1 {[%clk 0:00:51.3]} 24... a5 {[%clk
0:01:25.7]} 25. Nb6 {[%clk 0:00:45]} 25... Rcd8 {[%clk 0:01:21.1]} 26. Bd5
{[%clk 0:00:41.9]} 26... Bg5 {[%clk 0:01:16]} 27. R7e2 {[%clk 0:00:27.5]} 27...
f5 {[%clk 0:00:52.4]} 28. Bxc6 {[%clk 0:00:24.4]} 28... bxc6 {[%clk 0:00:53.3]}
29. d5 {[%clk 0:00:22.1]} 29... cxd5 {[%clk 0:00:48.1]} 30. Nxd5 {[%clk
0:00:21.6]} 30... Rb8 {[%clk 0:00:42.2]} 31. b3 {[%clk 0:00:20.7]} 31... Rfc8
{[%clk 0:00:36.3]} 32. Rd1 {[%clk 0:00:20.1]} 32... Rc5 {[%clk 0:00:32.1]} 33.
Re6 {[%clk 0:00:13.4]} 33... Rc6 {[%clk 0:00:24.6]} 34. g3 {[%clk 0:00:13.7]}
34... Ra8 {[%clk 0:00:17]} 35. Kg2 {[%clk 0:00:13.2]} 35... Rb8 {[%clk 0:00:17]}
36. h3 {[%clk 0:00:12.6]} 36... gxh3+ {[%clk 0:00:17.9]} 37. Kxh3 {[%clk
0:00:13.4]} 37... Rh8+ {[%clk 0:00:16.9]} 38. Kg2 {[%clk 0:00:13.8]} 38... Rb8
{[%clk 0:00:15.9]} 39. f4 {[%clk 0:00:13.9]} 39... Bd8 {[%clk 0:00:15.7]} 40.
Re3 {[%clk 0:00:06.9]} 40... Rc5 {[%clk 0:00:13.6]} 41. Red3 {[%clk 0:00:07.2]}
41... Rbc8 {[%clk 0:00:11.8]} 42. Kf3 {[%clk 0:00:07.3]} 42... g5 {[%clk
0:00:10.9]} 43. fxg5 {[%clk 0:00:06.6]} 43... Bxg5 {[%clk 0:00:11.8]} 44. c4
{[%clk 0:00:07.2]} 44... Kf7 {[%clk 0:00:11.3]} 45. Nf4 {[%clk 0:00:07.7]} 45...
Be7 {[%clk 0:00:10.9]} 46. Rd5 {[%clk 0:00:06.3]} 46... a4 {[%clk 0:00:11.2]}
47. Rxc5 {[%clk 0:00:05.8]} 47... Rxc5 {[%clk 0:00:12.1]} 48. Rd5 {[%clk
0:00:06.4]} 48... axb3 {[%clk 0:00:12.3]} 49. Rxc5 {[%clk 0:00:04.9]} 49... dxc5
{[%clk 0:00:12.5]} 50. axb3 {[%clk 0:00:05.4]} 50... Bf6 {[%clk 0:00:12.4]} 51.
Nd3 {[%clk 0:00:04.8]} 51... Bd4 {[%clk 0:00:11.8]} 52. Kf4 {[%clk 0:00:03.6]}
52... Kf6 {[%clk 0:00:11.4]} 53. Kf3 {[%clk 0:00:01.5]} 53... Bc3 {[%clk
0:00:10.5]} 54. Ne1 {[%clk 0:00:02.2]} 54... Bd4 {[%clk 0:00:10.1]} 55. Ng2
{[%clk 0:00:02.1]} 55... Be5 {[%clk 0:00:09.7]} 56. Nf4 {[%clk 0:00:03]} 56...
Bd4 {[%clk 0:00:09.2]} 57. Ne2 {[%clk 0:00:02.9]} 57... Be5 {[%clk 0:00:08.6]}
58. Nc1 {[%clk 0:00:02.5]} 58... Bc3 {[%clk 0:00:07]} 59. Nd3 {[%clk 0:00:03.4]}
59... Bd4 {[%clk 0:00:07.3]} 60. b4 {[%clk 0:00:03.8]} 60... cxb4 {[%clk
0:00:07]} 61. Nxb4 {[%clk 0:00:04.7]} 61... Be5 {[%clk 0:00:06.3]} 62. Nd3
{[%clk 0:00:04.3]} 62... Bc7 {[%clk 0:00:05.7]} 63. c5 {[%clk 0:00:03.4]} 63...
Ke6 {[%clk 0:00:04.8]} 64. Nb4 {[%clk 0:00:03.4]} 64... Kd7 {[%clk 0:00:03.5]}
65. Nd5 {[%clk 0:00:03.1]} 65... Be5 {[%clk 0:00:02.5]} 66. Ne3 {[%clk
0:00:02.9]} 66... Kc6 {[%clk 0:00:01.2]} 67. Nxf5 {[%clk 0:00:03.3]} 67... Kxc5
{[%clk 0:00:01.7]} 68. g4 {[%clk 0:00:03.9]} 68... Bb2 {[%clk 0:00:02.2]} 69.
Ke4 {[%clk 0:00:03.8]} 69... Kc6 {[%clk 0:00:02]} 70. g5 {[%clk 0:00:02.6]}
70... Kd7 {[%clk 0:00:02.4]} 71. g6 {[%clk 0:00:02.7]} 71... Ke8 {[%clk
0:00:02.5]} 72. Nd4 {[%clk 0:00:01.1]} 72... Bxd4 {[%clk 0:00:02.4]} 73. Kxd4
{[%clk 0:00:02]} 73... Kf8 {[%clk 0:00:02.4]} 74. Ke5 {[%clk 0:00:02.9]} 74...
Kg7 {[%clk 0:00:03.3]} 75. Kf5 {[%clk 0:00:03.8]} 75... Kg8 {[%clk 0:00:04.2]}
76. Kf6 {[%clk 0:00:04.7]} 76... Kf8 {[%clk 0:00:03.9]} 77. Kf5 {[%clk
0:00:05.6]} 77... Kg7 {[%clk 0:00:04.5]} 78. Kg5 {[%clk 0:00:06.5]} 78... Kg8
{[%clk 0:00:05.4]} 79. Kh6 {[%clk 0:00:07.4]} 79... Kh8 {[%clk 0:00:04.6]} 80.
Kg5 {[%clk 0:00:08.3]} 80... Kg7 {[%clk 0:00:05.3]} 81. Kf5 {[%clk 0:00:08.6]}
81... Kg8 {[%clk 0:00:06.2]} 82. Ke6 {[%clk 0:00:09]} 82... Kg7 {[%clk
0:00:07.1]} 83. Kf5 {[%clk 0:00:09.3]} 1/2-1/2

[Event "*** Titled Tuesday Blitz"]
[Site "Chess.com"]
[Date "2021.03.16"]
[Round "8"]
[White "BahadirOzen"]
[Black "Abund"]
[Result "0-1"]
[WhiteElo "2769"]
[BlackElo "2706"]
[TimeControl "180+1"]
[EndTime "11:30:06 PDT"]
[Termination "Abund won on time"]

1. g3 {[%clk 0:03:00.9]} 1... Nf6 {[%clk 0:02:59.5]} 2. Bg2 {[%clk 0:03:01.4]}
2... e5 {[%clk 0:02:59.1]} 3. d3 {[%clk 0:03:00.5]} 3... d5 {[%clk 0:02:58.8]}
4. Nf3 {[%clk 0:03:00.9]} 4... Bd6 {[%clk 0:02:59]} 5. O-O {[%clk 0:03:01.3]}
5... O-O {[%clk 0:02:57.9]} 6. Nbd2 {[%clk 0:03:01.4]} 6... Re8 {[%clk
0:02:53.1]} 7. e4 {[%clk 0:03:01.7]} 7... c6 {[%clk 0:02:53.4]} 8. b3 {[%clk
0:03:01.7]} 8... a5 {[%clk 0:02:52.8]} 9. a3 {[%clk 0:03:01.8]} 9... Nbd7 {[%clk
0:02:50.2]} 10. Bb2 {[%clk 0:03:02]} 10... Nf8 {[%clk 0:02:49.6]} 11. Re1 {[%clk
0:03:01.6]} 11... Ng6 {[%clk 0:02:49.4]} 12. c3 {[%clk 0:03:02.1]} 12... h6
{[%clk 0:02:39.5]} 13. Qc2 {[%clk 0:03:01.9]} 13... Qc7 {[%clk 0:02:36.5]} 14.
b4 {[%clk 0:03:00.8]} 14... b6 {[%clk 0:02:35.4]} 15. Qb3 {[%clk 0:02:35.1]}
15... Be6 {[%clk 0:02:30.5]} 16. Qc2 {[%clk 0:02:31.1]} 16... Ra7 {[%clk
0:02:18.2]} 17. h3 {[%clk 0:02:09.9]} 17... Rc8 {[%clk 0:02:15.4]} 18. Rad1
{[%clk 0:02:05.1]} 18... axb4 {[%clk 0:02:09.9]} 19. cxb4 {[%clk 0:02:04.7]}
19... d4 {[%clk 0:02:06.5]} 20. Nc4 {[%clk 0:02:02.5]} 20... Bf8 {[%clk
0:01:55.6]} 21. Ncd2 {[%clk 0:01:48.3]} 21... b5 {[%clk 0:01:48.1]} 22. Nb3
{[%clk 0:01:47.9]} 22... Nd7 {[%clk 0:01:46.4]} 23. Rc1 {[%clk 0:01:47.8]} 23...
Qb6 {[%clk 0:01:42.3]} 24. Nfd2 {[%clk 0:01:37.8]} 24... Rac7 {[%clk 0:01:41.2]}
25. Nc5 {[%clk 0:01:35.1]} 25... Nxc5 {[%clk 0:01:30.7]} 26. bxc5 {[%clk
0:01:36]} 26... Qa7 {[%clk 0:01:26]} 27. Rf1 {[%clk 0:01:31.9]} 27... f6 {[%clk
0:01:11.8]} 28. f4 {[%clk 0:01:29.6]} 28... Bf7 {[%clk 0:01:03.7]} 29. Kh2
{[%clk 0:01:08.6]} 29... Qa4 {[%clk 0:01:02.7]} 30. Qxa4 {[%clk 0:01:03.4]}
30... bxa4 {[%clk 0:01:02.7]} 31. Rc2 {[%clk 0:01:02.8]} 31... Rb8 {[%clk
0:00:59.8]} 32. f5 {[%clk 0:00:56.4]} 32... Ne7 {[%clk 0:00:57.6]} 33. Bf3
{[%clk 0:00:55.7]} 33... Nc8 {[%clk 0:00:52.7]} 34. g4 {[%clk 0:00:43.9]} 34...
Rb5 {[%clk 0:00:46.8]} 35. Rfc1 {[%clk 0:00:43]} 35... Rcb7 {[%clk 0:00:44.9]}
36. Ba1 {[%clk 0:00:43]} 36... Na7 {[%clk 0:00:43]} 37. h4 {[%clk 0:00:43]}
37... Be7 {[%clk 0:00:42.1]} 38. Kg3 {[%clk 0:00:41.8]} 38... Ra5 {[%clk
0:00:41.6]} 39. Bd1 {[%clk 0:00:37.6]} 39... Rbb5 {[%clk 0:00:39.7]} 40. Nc4
{[%clk 0:00:35.9]} 40... Ra6 {[%clk 0:00:26.6]} 41. Nd6 {[%clk 0:00:36.1]} 41...
Rxc5 {[%clk 0:00:21.9]} 42. Rxc5 {[%clk 0:00:15.8]} 42... Bxd6 {[%clk
0:00:21.7]} 43. g5 {[%clk 0:00:15.5]} 43... hxg5 {[%clk 0:00:20.7]} 44. hxg5
{[%clk 0:00:16.4]} 44... Bxc5 {[%clk 0:00:18.8]} 45. Rxc5 {[%clk 0:00:16.4]}
45... Nb5 {[%clk 0:00:18]} 46. Bb2 {[%clk 0:00:16.5]} 46... Bb3 {[%clk
0:00:17.4]} 47. Bh5 {[%clk 0:00:16.4]} 47... Bf7 {[%clk 0:00:17.6]} 48. g6
{[%clk 0:00:15.8]} 48... Bb3 {[%clk 0:00:17.5]} 49. Be2 {[%clk 0:00:15.9]} 49...
Kf8 {[%clk 0:00:17.7]} 50. Kf2 {[%clk 0:00:16.1]} 50... Ke7 {[%clk 0:00:18.1]}
51. Ke1 {[%clk 0:00:16.6]} 51... Kd6 {[%clk 0:00:18.6]} 52. Rc1 {[%clk
0:00:17.5]} 52... c5 {[%clk 0:00:18.6]} 53. Kd2 {[%clk 0:00:18.4]} 53... Rb6
{[%clk 0:00:18.3]} 54. Rh1 {[%clk 0:00:18.5]} 54... Rb8 {[%clk 0:00:18.4]} 55.
Rh7 {[%clk 0:00:18.5]} 55... Rg8 {[%clk 0:00:18.5]} 56. Bf1 {[%clk 0:00:18.6]}
56... Nc7 {[%clk 0:00:15.1]} 57. Be2 {[%clk 0:00:18.8]} 57... Ke7 {[%clk
0:00:15.2]} 58. Ke1 {[%clk 0:00:18.2]} 58... Kd6 {[%clk 0:00:15.4]} 59. Bc1
{[%clk 0:00:17.9]} 59... Nb5 {[%clk 0:00:15.4]} 60. Kd2 {[%clk 0:00:18.2]} 60...
Kc6 {[%clk 0:00:15.3]} 61. Bb2 {[%clk 0:00:18.3]} 61... Nd6 {[%clk 0:00:15]} 62.
Bf1 {[%clk 0:00:17.5]} 62... Kb5 {[%clk 0:00:15.1]} 63. Be2 {[%clk 0:00:17.1]}
63... c4 {[%clk 0:00:15.4]} 64. Bf1 {[%clk 0:00:17.4]} 64... c3+ {[%clk
0:00:15.3]} 65. Bxc3 {[%clk 0:00:17.8]} 65... dxc3+ {[%clk 0:00:16.2]} 66. Kxc3
{[%clk 0:00:18.7]} 66... Kc5 {[%clk 0:00:16.6]} 67. Be2 {[%clk 0:00:18]} 67...
Nb5+ {[%clk 0:00:16.9]} 68. Kd2 {[%clk 0:00:18.9]} 68... Nxa3 {[%clk 0:00:16.9]}
69. d4+ {[%clk 0:00:18.6]} 69... Kxd4 {[%clk 0:00:16.8]} 70. Rh3 {[%clk
0:00:17.3]} 70... Kxe4 {[%clk 0:00:15.2]} 71. Bd3+ {[%clk 0:00:13.1]} 71... Kf4
{[%clk 0:00:15.2]} 72. Rh4+ {[%clk 0:00:12.9]} 72... Kg5 {[%clk 0:00:14.5]} 73.
Rb4 {[%clk 0:00:13.8]} 73... Rd8 {[%clk 0:00:12.6]} 74. Kc3 {[%clk 0:00:14.3]}
74... Nc2 {[%clk 0:00:09.3]} 75. Rb7 {[%clk 0:00:12.2]} 75... Rc8+ {[%clk
0:00:08.3]} 76. Kd2 {[%clk 0:00:12.3]} 76... e4 {[%clk 0:00:07.6]} 77. Bxe4
{[%clk 0:00:11.9]} 77... Nd4 {[%clk 0:00:07.9]} 78. Rxg7 {[%clk 0:00:12.2]}
78... Nxf5 {[%clk 0:00:08.3]} 79. Rb7 {[%clk 0:00:08.3]} 79... Nd6 {[%clk
0:00:07.7]} 0-1

[Event "*** Titled Tuesday Blitz"]
[Site "Chess.com"]
[Date "2021.03.16"]
[Round "8"]
[White "hypert"]
[Black "anon132639"]
[Result "0-1"]
[WhiteElo "2570"]
[BlackElo "2756"]
[TimeControl "180+1"]
[EndTime "11:30:06 PDT"]
[Termination "anon132639 won by resignation"]

1. e4 {[%clk 0:03:00.9]} 1... e6 {[%clk 0:02:48.5]} 2. Nc3 {[%clk 0:03:01.8]}
2... b6 {[%clk 0:02:46.8]} 3. d4 {[%clk 0:03:01.9]} 3... Bb7 {[%clk 0:02:47.2]}
4. Nf3 {[%clk 0:03:00.6]} 4... Bb4 {[%clk 0:02:46.9]} 5. Bd3 {[%clk 0:03:00.3]}
5... Nf6 {[%clk 0:02:46.7]} 6. e5 {[%clk 0:02:56.8]} 6... Ne4 {[%clk 0:02:44]}
7. Bd2 {[%clk 0:02:52.5]} 7... Nxd2 {[%clk 0:02:38.6]} 8. Qxd2 {[%clk
0:02:52.6]} 8... d5 {[%clk 0:02:37.1]} 9. a3 {[%clk 0:02:50.1]} 9... Be7 {[%clk
0:02:36.9]} 10. Qe2 {[%clk 0:02:44.2]} 10... c5 {[%clk 0:02:35.3]} 11. Qe3
{[%clk 0:02:34.6]} 11... Ba6 {[%clk 0:02:22.2]} 12. Bxa6 {[%clk 0:02:20.6]}
12... Nxa6 {[%clk 0:02:23.1]} 13. h4 {[%clk 0:02:20.8]} 13... h6 {[%clk
0:02:22.6]} 14. Rh3 {[%clk 0:02:18.5]} 14... O-O {[%clk 0:02:04.8]} 15. O-O-O
{[%clk 0:02:13.9]} 15... Rc8 {[%clk 0:02:03.1]} 16. Rg3 {[%clk 0:02:07.9]} 16...
Kh8 {[%clk 0:02:02.3]} 17. Qd3 {[%clk 0:02:01.9]} 17... cxd4 {[%clk 0:01:56]}
18. Qxd4 {[%clk 0:01:55.6]} 18... Rc4 {[%clk 0:01:55.2]} 19. Qd3 {[%clk
0:01:53]} 19... Nc5 {[%clk 0:01:55.2]} 20. Qe3 {[%clk 0:01:47]} 20... Ne4 {[%clk
0:01:12.5]} 21. Nxe4 {[%clk 0:01:24.4]} 21... Rxe4 {[%clk 0:01:13.4]} 22. Qd3
{[%clk 0:01:23.3]} 22... Bxh4 {[%clk 0:00:58.2]} 23. Rh3 {[%clk 0:01:23.2]}
23... Bxf2 {[%clk 0:00:56.5]} 24. Kb1 {[%clk 0:01:23.2]} 24... Be3 {[%clk
0:00:52.1]} 25. Re1 {[%clk 0:01:07.5]} 25... Bf4 {[%clk 0:00:48.9]} 26. Rxe4
{[%clk 0:01:01.6]} 26... dxe4 {[%clk 0:00:49.8]} 27. Qxe4 {[%clk 0:01:01.3]}
27... Qd1+ {[%clk 0:00:50.2]} 28. Ka2 {[%clk 0:01:01.8]} 28... Qd5+ {[%clk
0:00:50.8]} 29. Qxd5 {[%clk 0:01:00.2]} 29... exd5 {[%clk 0:00:51.7]} 30. Rh4
{[%clk 0:00:58.1]} 30... Be3 {[%clk 0:00:40.7]} 31. c3 {[%clk 0:00:57.8]} 31...
Re8 {[%clk 0:00:39.7]} 32. Kb1 {[%clk 0:00:57.2]} 32... Kh7 {[%clk 0:00:38.2]}
33. Kc2 {[%clk 0:00:56.7]} 33... g5 {[%clk 0:00:38.1]} 34. Ra4 {[%clk
0:00:56.4]} 34... Re7 {[%clk 0:00:36.5]} 35. Kd3 {[%clk 0:00:56.4]} 35... Bf2
{[%clk 0:00:32.5]} 36. Ke2 {[%clk 0:00:52.3]} 36... Bg3 {[%clk 0:00:31.9]} 37.
Kd3 {[%clk 0:00:31]} 37... Kg6 {[%clk 0:00:29.6]} 38. Rd4 {[%clk 0:00:21.7]}
38... h5 {[%clk 0:00:26.3]} 39. Rxd5 {[%clk 0:00:20.5]} 39... g4 {[%clk
0:00:26.8]} 40. Nd4 {[%clk 0:00:19.8]} 40... Rxe5 {[%clk 0:00:22.7]} 41. Rd6+
{[%clk 0:00:19.6]} 41... f6 {[%clk 0:00:21.9]} 42. Rd7 {[%clk 0:00:20.1]} 42...
h4 {[%clk 0:00:21.6]} 43. Ne2 {[%clk 0:00:17.7]} 43... Bf2 {[%clk 0:00:13.3]}
44. Rd8 {[%clk 0:00:17.4]} 44... Re3+ {[%clk 0:00:09.2]} 45. Kd2 {[%clk
0:00:16.7]} 45... Re7 {[%clk 0:00:10.1]} 46. Rg8+ {[%clk 0:00:14.2]} 46... Kf5
{[%clk 0:00:10.4]} 47. Rh8 {[%clk 0:00:12.2]} 47... Rd7+ {[%clk 0:00:10.8]} 48.
Kc2 {[%clk 0:00:12.2]} 48... h3 {[%clk 0:00:08.1]} 49. gxh3 {[%clk 0:00:11.5]}
49... Re7 {[%clk 0:00:03.5]} 50. hxg4+ {[%clk 0:00:09.2]} 50... Kxg4 {[%clk
0:00:04.4]} 51. Kd2 {[%clk 0:00:09.1]} 51... Kf3 {[%clk 0:00:04]} 52. Rh3+
{[%clk 0:00:08]} 52... Kg4 {[%clk 0:00:03.5]} 53. Rd3 {[%clk 0:00:08.2]} 53...
f5 {[%clk 0:00:03.2]} 54. Rd8 {[%clk 0:00:07.4]} 54... f4 {[%clk 0:00:02.6]} 55.
Rg8+ {[%clk 0:00:07.7]} 55... Kf3 {[%clk 0:00:03.1]} 56. Nc1 {[%clk 0:00:06.7]}
56... Be3+ {[%clk 0:00:03.3]} 57. Kc2 {[%clk 0:00:07.2]} 57... Bxc1 {[%clk
0:00:03.4]} 58. Kxc1 {[%clk 0:00:08.1]} 58... Ke3 {[%clk 0:00:04.1]} 59. Rg1
{[%clk 0:00:07]} 59... Kf2 {[%clk 0:00:03.7]} 60. Rg8 {[%clk 0:00:06.4]} 60...
f3 {[%clk 0:00:04.2]} 61. Rf8 {[%clk 0:00:06.2]} 61... Rd7 {[%clk 0:00:03.7]}
62. Kc2 {[%clk 0:00:06.2]} 62... Ke2 {[%clk 0:00:04.2]} 63. Re8+ {[%clk
0:00:06.5]} 63... Kf1 {[%clk 0:00:04.6]} 64. Rf8 {[%clk 0:00:06.5]} 64... f2
{[%clk 0:00:05.2]} 65. c4 {[%clk 0:00:06.9]} 65... Re7 {[%clk 0:00:05.6]} 66. b4
{[%clk 0:00:06.1]} 66... Ke2 {[%clk 0:00:05.1]} 67. Kc3 {[%clk 0:00:04.6]} 67...
f1=Q {[%clk 0:00:05.3]} 68. Rxf1 {[%clk 0:00:04.5]} 68... Kxf1 {[%clk
0:00:06.2]} 69. c5 {[%clk 0:00:05.2]} 69... bxc5 {[%clk 0:00:07.1]} 70. bxc5
{[%clk 0:00:05.6]} 70... Ke2 {[%clk 0:00:07.8]} 71. Kc4 {[%clk 0:00:06]} 71...
Kd2 {[%clk 0:00:07.5]} 72. c6 {[%clk 0:00:05]} 72... Kc2 {[%clk 0:00:05.6]} 73.
a4 {[%clk 0:00:04.9]} 73... Rc7 {[%clk 0:00:04.8]} 74. Kb5 {[%clk 0:00:04.3]}
74... Kb3 {[%clk 0:00:05.4]} 75. a5 {[%clk 0:00:04.1]} 75... Ka3 {[%clk
0:00:04.7]} 76. a6 {[%clk 0:00:03.9]} 76... Kb3 {[%clk 0:00:04.8]} 77. Kc5
{[%clk 0:00:04.3]} 77... Ka4 {[%clk 0:00:05.3]} 78. Kd6 {[%clk 0:00:04.7]} 78...
Rc8 {[%clk 0:00:05]} 79. Kd7 {[%clk 0:00:04.6]} 79... Ra8 {[%clk 0:00:04.3]} 80.
c7 {[%clk 0:00:04.5]} 80... Kb5 {[%clk 0:00:04.9]} 81. c8=Q {[%clk 0:00:03.8]}
81... Rxc8 {[%clk 0:00:05.4]} 82. Kxc8 {[%clk 0:00:04.7]} 82... Kxa6 {[%clk
0:00:06.2]} 83. Kc7 {[%clk 0:00:05.6]} 83... Kb5 {[%clk 0:00:06.7]} 84. Kb7
{[%clk 0:00:05.6]} 84... a5 {[%clk 0:00:07.1]} 0-1